Cogmind - Beta 15 @@@ ROGUE MODE // 2025.05.07 @ 13:11:05 Player: H3-RMN Result: Destroyed by D-53 Grenadier with Mini Grenade Launcher Performance ------------- Evolutions (0) 0 Regions Visited (2) 400 Robots Destroyed (21) 105 Value Destroyed (346) 346 Prototype IDs (0) 0 Alien Tech Used (0) 0 Bonus (0) 0 TOTAL SCORE: 851 Bonus ------- None Cogmind --------- Core Integrity 0/250 Matter 185/300 Energy 65/265 System Corruption 0% Temperature Cool (45) Movement Treading (240) Ox1 Location -10/Mines Parts ------- > --- POWER (1) -------- Improved Ion Engine > --- PROPULSION (2) --- Light Treads > --- UTILITY (2) ------ Large Storage Unit > --- WEAPON (2) ------- Particle Cannon Light Assault Rifle > --- INVENTORY (15) --- Authchip [R/Combat] Authchip [Armor] Light Assault Rifle Light Cannon Datajack Mining Laser Peak State ------------ > --- POWER ------------ Improved Ion Engine > --- PROPULSION ------- Light Treads Wheel > --- UTILITY ---------- Small Storage Unit Improved Targeting Computer > --- WEAPON ----------- Particle Cannon Light Assault Rifle > --- INVENTORY -------- Ion Engine Light Treads Light Treads Authchip [Armor] Light Assault Rifle Rocket Launcher Datajack Mining Laser [Rating: 11] Favorites ----------- Power Improved Ion Engine Engine Improved Ion Engine Propulsion Light Treads Treads Light Treads Wheel Wheel Utility Small Storage Unit Device Seismic Detector Storage Small Storage Unit Processor Improved Targeting Computer Weapon EM Pulse Gun Energy Gun EM Pulse Gun Energy Cannon Particle Cannon Ballistic Gun Light Assault Rifle Ballistic Cannon Light Cannon Launcher Rocket Launcher Build | -11 -10 -10 ------- Run | Yrd Mat Min Slots Evolved . | . . . Power . | . . . Propulsion . | . . . Utility . | . . . Weapon . | . . . Parts Attached 20 | 7 8 5 Power 3 | 1 1 1 Engine 3 | 1 1 1 Core . | . . . Reactor . | . . . Propulsion 5 | 2 1 2 Treads 3 | 1 . 2 Leg . | . . . Wheel 2 | 1 1 . Hover . | . . . Flight . | . . . Utility 5 | 2 3 . Device 2 | 1 1 . Storage 2 | 1 1 . Processor 1 | . 1 . Hackware . | . . . Protection . | . . . Artifact . | . . . Weapon 7 | 2 3 2 Energy Gun 2 | 2 . . Energy Cannon 1 | . 1 . Ballistic Gun 2 | . 1 1 Ballistic Cannon 1 | . 1 . Launcher 1 | . . 1 Special Weapon . | . . . Impact Weapon . | . . . Slashing Weapon . | . . . Piercing Weapon . | . . . Special Melee Weapon . | . . . Unidentified Prototypes . | . . . Parts Lost 7 | . 1 6 Power 1 | . . 1 Propulsion 3 | . . 3 Utility 1 | . . 1 Weapon 2 | . 1 1 Highest Loss Streak 6 | . 1 6 To Critical Strikes . | . . . Average Backups 7 | 3 7 9 Power . | . 1 . Propulsion 1 | 1 2 1 Utility 1 | . 1 2 Weapon 2 | . 2 3 Tool/Special . | . . . Unused Backups 7 | . 4 3 Power 1 | . 1 . Propulsion . | . . . Utility 3 | . 2 1 Weapon 2 | . 1 1 Tool/Special 1 | . . 1 Average Slot Usage (%) 99 | . 100 94 Engine 13 | . 14 12 Treads 13 | . 14 12 Wheel 13 | . 14 12 Device 4 | . 5 . Storage 14 | . 14 14 Processor 9 | . 8 12 Energy Gun 8 | . 9 . Energy Cannon 8 | . 8 11 Ballistic Gun 2 | . 2 1 Ballistic Cannon 8 | . 7 12 Peak Build Rating 11 | 7 11 11 Average Rating 9 | 5 9 10 On Entrance 6 | . 7 11 Naked Turns . | . . . Heaviest Build 34 | 15 34 34 Greatest Support 20 | 20 16 10 Greatest Overweight (x) 3 | . 3 3 Average Overweight (x) 1 | . 1 3 Largest Inventory Capacity 15 | 8 15 15 Average Capacity 10 | 7 10 15 Most Carried 10 | 7 10 10 Average Carried 7 | 3 7 9 Final Capacity 15 | 8 15 15 Final Carried 10 | 6 10 6 Class Distribution -------------------- 100% | Mutant Dominant Class ---------------- Mutant | -10/Materials Mutant | -10/Mines Resources | -11 -10 -10 ----------- Run | Yrd Mat Min Matter Collected 544 | 270 258 16 Remotely . | . . . Salvage Created 757 | 159 507 91 Parts 40 | 8 29 3 Haulers Intercepted 2 | . 2 . Recyclers Shooed 2 | . 2 . Parts Field Recycled . | . . . Retrieved Matter . | . . . Parts Self-Destructed . | . . . Prevented . | . . . Kills | -11 -10 -10 ------- Run | Yrd Mat Min Combat Hostiles Destroyed 24 | . 9 15 Guns 8 | . 8 . Cannons 2 | . . 2 AOE 14 | . 1 13 Classes Destroyed 9 | 2 6 1 Worker 1 | . 1 . Tunneler 3 | 3 . . Hauler 2 | . 2 . Recycler 2 | 1 1 . Operator 1 | . 1 . Watcher 1 | . 1 . Swarmer 6 | . 6 . Grunt 5 | . 3 2 Assembled 13 | . . 13 Best Kill Streak 13 | 4 8 13 Combat Bots Only 13 | . 6 13 Max Kills in Single Turn 4 | 1 2 4 Gunslinging . | . . . Exploded 4 | . 1 4 Melee . | . . . Uniques/NPCs Destroyed . | . . . Combat | -11 -10 -10 -------- Run | Yrd Mat Min Hostile Shots Fired 70 | . 29 41 Missed 15 | . 8 7 Hits 55 | . 21 34 Melee 2 | . . 2 Projectile 53 | . 21 32 AOE 12 | . . 12 Critical Strikes 1 | . 1 . Damage Taken 1150 | 8 254 888 Core 251 | . 45 206 Absorbed by Shields . | . . . Core Remaining (%) 100 | 100 . . Volleys Fired 62 | 10 36 16 Largest 2 | 2 2 2 Hottest 98 | 80 98 98 Shots Fired 114 | 20 69 25 Gun 83 | 20 59 4 Cannon 24 | . 10 14 Launcher 7 | . . 7 Special . | . . . Kinetic 27 | . 18 9 Thermal 14 | . 5 9 Explosive 7 | . . 7 Electromagnetic 66 | 20 46 . Robot Hit Streak 10 | 9 10 8 Robot Miss Streak 4 | 1 4 4 Penetration Max . | . . . Secondary Targets 1 | . 1 . Max Gunslinging Chain 1 | . 1 . Shots Hit Robots 73 | 14 46 13 Core Hits 65 | 4 23 38 Critical Kills . | . . . Critical Parts Destroyed . | . . . Critical Strikes 3 | 1 2 . Blast 1 | . 1 . Corrupt 2 | 1 1 . Melee Attacks . | . . . Impact . | . . . Slashing . | . . . Piercing . | . . . Sneak Attacks . | . . . Combat Hostiles . | . . . Follow-up Attacks . | . . . Damage Inflicted 2298 | 307 693 1298 Guns 727 | 186 525 16 Cannons 278 | . 76 202 Explosions 1293 | 121 92 1080 Melee . | . . . Ramming . | . . . Kinetic 161 | . 110 51 Thermal 421 | 121 133 167 Explosive 1080 | . . 1080 Electromagnetic 636 | 186 450 . Impact . | . . . Slashing . | . . . Piercing . | . . . Highest Corruption . | . . . Average Corruption . | . . . Corruption Purged . | . . . Corruption Blocked . | . . . Overload Shots . | . . . Overflow Damage 71 | 8 10 53 Projectiles . | . . . Explosions 71 | 8 10 53 Melee . | . . . Knockbacks 1 | . 1 . Impact . | . . . Kinetic 1 | . 1 . Secondary . | . . . Self-Inflicted Damage 99 | 9 . 90 Shots 4 | 1 . 3 Rammed . | . . . Targets Rammed . | . . . Kicked . | . . . Crushed . | . . . Highest Temperature 211 | 84 211 135 Average Temperature 68 | 34 88 41 Received Heat Transfer 152 | . 114 38 Siege Activations . | . . . Martial Activations . | . . . Shielding Activations . | . . . Robots Disrupted . | . . . Combat Hostiles . | . . . Robots Corrupted . | . . . Combat Hostiles . | . . . Parts Fried 6 | 2 4 . Impact Corruptions . | . . . Robots Melted . | . . . Combat Hostiles . | . . . Parts Melted . | . . . Heat Transferred 620 | 100 224 296 Parts Sabotaged . | . . . Parts Stolen . | . . . Parts Stripped . | . . . Power Chain Reactions 4 | 2 2 . Alert | -11 -10 -10 ------- Run | Yrd Mat Min Maximum Alert Level . | . . . Low Security (%) 100 | 100 100 100 Level 1 . | . . . Level 2 . | . . . Level 3 . | . . . Level 4 . | . . . Level 5 . | . . . High Security . | . . . Max Security . | . . . Peak Influence 177 | 10 177 83 Initial 15 | . . 15 Average 64 | 1 76 54 Influence Increases 455 | 20 336 99 Destroy 0b10 Robot/C 220 | . 180 40 Destroy 0b10 Robot/NC 50 | 20 30 . Destroy Leader 46 | . 36 10 Successful Hack 25 | . 25 . Select Force Hacks 30 | . 30 . Disable Machine 30 | . 30 . Destroy Structure 39 | . 5 34 Lose Combat Pursuer 15 | . . 15 Influence Decreases 441 | 20 296 125 Entered New Map 25 | . . 25 Time Decay 346 | 20 286 40 Lost Part 70 | . 10 60 Squads Dispatched 1 | . 1 . Investigation 1 | . 1 . Extermination . | . . . Reinforcement . | . . . Assault . | . . . Garrison . | . . . Intercept . | . . . Searches Triggered . | . . . Construction Impeded . | . . . Haulers Reinforced . | . . . Active Scanning Responses . | . . . Cargo Convoy Interrupts . | . . . Stealth | -11 -10 -10 --------- Run | Yrd Mat Min Distress Signals 1 | . 1 . Communications Jammed . | . . . Distress Signals . | . . . Times Spotted 37 | . 17 20 Peak Tracking Total 16 | . 4 16 Tactical Retreats 2 | . . 2 Traps | -11 -10 -10 ------- Run | Yrd Mat Min Traps Triggered . | . . . Indirectly . | . . . Trap Hack Attempts . | . . . Triggered . | . . . Disarmed . | . . . Reprogrammed . | . . . Reused . | . . . Traps Extracted . | . . . Installed . | . . . Triggered . | . . . Machines | -11 -10 -10 ---------- Run | Yrd Mat Min Machines Disabled 2 | . 2 . Max in Single Turn 1 | . 1 . Machines Repaired . | . . . Machines Dismantled . | . . . Machines Sabotaged . | . . . Overloaded Fab Kills . | . . . Hacking | -11 -10 -10 --------- Run | Yrd Mat Min Machines Accessed 8 | . 8 . Terminals 7 | . 7 . Fabricators . | . . . Repair Stations . | . . . Recycling Units 1 | . 1 . Scanalyzers . | . . . Garrison Access . | . . . Total Hacks 40 | . 40 . Successful 17 | . 17 . Failed 23 | . 23 . Catastrophic 2 | . 2 . Database Lockouts . | . . . Manual 30 | . 30 . Terminals 35 | . 35 . Fabricators . | . . . Repair Stations . | . . . Recycling Units 5 | . 5 . Scanalyzers . | . . . Garrison Access . | . . . Terminal Hacks 5 | . 5 . Part Schematic 2 | . 2 . Robot Analysis 1 | . 1 . Locate Traps 1 | . 1 . Transport Status 1 | . 1 . Fabricator Hacks . | . . . Repair Station Hacks . | . . . Recycling Unit Hacks 2 | . 2 . Report Inventory 1 | . 1 . Retrieve Components 1 | . 1 . Scanalyzer . | . . . Garrison Access Hacks . | . . . Unauthorized Hacks 10 | . 10 . Terminals 9 | . 9 . Botnet 2 | . 2 . Operators 1 | . 1 . Skim 6 | . 6 . Fabricators . | . . . Repair Stations . | . . . Recycling Units 1 | . 1 . Tunnel 1 | . 1 . Scanalyzers . | . . . Garrison Access . | . . . Data Cores Recovered 1 | . 1 . Used . | . . . Hacking Detections 7 | . 7 . Full Trace Events . | . . . Feedback Events . | . . . Feedback Blocked . | . . . Robot Schematics Acquired . | . . . Robots Built . | . . . Authchips . | . . . Time . | . . . Total Robot Build Rating . | . . . Part Schematics Acquired 2 | . 2 . Parts Built . | . . . Authchips . | . . . Time . | . . . Total Part Build Rating . | . . . Parts Repaired . | . . . Time . | . . . Parts Recycled . | . . . Recycled Matter . | . . . Retrieved Matter . | . . . Retrieved Components 9 | . 9 . Parts Scanalyzed . | . . . Part Schematics Acquired . | . . . Parts Damaged . | . . . Bothacking | -11 -10 -10 ------------ Run | Yrd Mat Min Used RIF Installer . | . . . Robots Hacked . | . . . Non-combat . | . . . Combat . | . . . Robot Hacks Applied . | . . . Relay Couplers Released . | . . . Fabnet Peak Effective % . | . . . Robots Rewired . | . . . Allies Hacked . | . . . Hacks Repelled . | . . . Allies | -11 -10 -10 -------- Run | Yrd Mat Min Total Allies . | . . . Largest Group . | . . . Highest-Rated Group . | . . . Highest-Rated Ally . | . . . Total Orders . | . . . Ally Attacks . | . . . Total Damage . | . . . Kills . | . . . Allies Corrupted . | . . . Allies Melted . | . . . Intel | -11 -10 -10 ------- Run | Yrd Mat Min Active Infowar (turns) 286 | 16 270 . Seismic 286 | 16 270 . Robot Analysis Total 1 | . 1 . Derelict Logs Recovered 1 | . . 1 Drone Launches . | . . . Drone Recoveries . | . . . Exploration | -11 -10 -10 ------------- Run | Yrd Mat Min Turns Passed 923 | 119 706 98 Spaces Moved 630 | 61 527 42 Core 3 | 3 . . Treads 1 | 1 . . Legs . | . . . Wheels 626 | 57 527 42 Hover . | . . . Flight . | . . . Fastest Speed 50 | 50 95 125 Average Speed 107 | 98 106 125 Slowest Speed 160 | 160 125 125 Overloaded Moves . | . . . Propulsion Burnouts . | . . . Robots Hopped . | . . . Potential Cave-ins . | . . . Cave-ins Triggered . | . . . Exploration Rate (%) 34 | 5 83 15 Regions Visited 2 Branch Regions 1 Pre-discovered Areas 2 | . 1 1 Known Exits Taken . | . . . Unknown Exits Taken 2 | 1 1 . Scrap Searched . | . . . Spaces Dug 21 | . . 21 Terrain Destroyed 65 | 7 4 54 Melee . | . . . Projectile . | . . . AOE 65 | 7 4 54 Terrain Rammed . | . . . Walls Destroyed . | . . . Machines Disabled . | . . . Actions | -11 -10 -10 --------- Run | Yrd Mat Min Total 768 | 96 608 64 Wait 29 | 12 17 . Move 628 | 60 526 42 Hop . | . . . Pick Up 17 | 7 10 . Fast Attach 9 | 6 3 . Attach 6 | 1 1 4 Detach . | . . . Swap 6 | . 4 2 Drop 11 | . 11 . Fire 62 | 10 36 16 Melee . | . . . Ram . | . . . Kick . | . . . Crush . | . . . Escape Stasis . | . . . Rewire . | . . . Trap . | . . . Miscellaneous . | . . . Route ------- -11/Scrapyard -10/Materials (discovered 4 exits: *Mat x3 / [*Min]) -10/Mines History --------- Turn | Location | Event 20 | -11/Scrapyard | Discovered new exit (range 16) 120 | -11/Scrapyard | Entered Materials 237 | -10/Materials | Discovered new exit (range 12) 310 | -10/Materials | Build established: Mutant 387 | -10/Materials | Discovered new exit (range 15) 561 | -10/Materials | Discovered new exit (range 15) 598 | -10/Materials | Learned location of 1 exit from Storage 659 | -10/Materials | Discovered new exit (range 9) 685 | -10/Materials | Loaded intel: 9 trap records 712 | -10/Materials | Learned 4 Subcaves zone layouts 727 | -10/Materials | Identified exit to Materials 734 | -10/Materials | Loaded intel: 1 repair station location 751 | -10/Materials | Learned 4 Materials zone layouts 777 | -10/Materials | Learned Storage security intel 815 | -10/Materials | Learned 4 Materials zone layouts 826 | -10/Materials | Entered Mines 843 | -10/Mines | Met a Derelict bent on vengeance 861 | -10/Mines | Learned location of Mines (-9) 868 | -10/Mines | Assembled infested the area 915 | -10/Mines | Core integrity fell below 50% 919 | -10/Mines | Core integrity fell below 20% 924 | -10/Mines | Destroyed by D-53 Grenadier with Mini Grenade Launcher Last Messages --------------- 00898_ Destroyed Asb. F-torch. 00898_ as-48449 destroyed. 00899_ The unstable cave ceiling collapses. 00902_ as-01349 destroyed. 00902_ as-07787 destroyed. 00904_ as-48379 destroyed. 00904_ Lgt. Treads destroyed. 00904_ Destroyed Lgt. Treads. 00906_ Rocket Launcher destroyed. 00907_ The unstable cave ceiling collapses. 00913_ Imp. Ion Engine destroyed. 00913_ Seismic Survey Station disabled. 00913_ as-14402 destroyed. 00917_ U-05 Engineer lays Concrete. 00919_ The unstable cave ceiling collapses. 00919_ Imp. Targeting Computer destroyed. 00919_ Wheel destroyed. 00920_ The unstable cave ceiling collapses. 00921_ Lgt. Treads destroyed. 00924_ The unstable cave ceiling collapses. Map ----- +----------------------------------------------------+ | ???????????????????????????????????# !!! ##? | | ???????????????????????????????????# ! ! #? | | ???????????????????????????????##### ! ! ## | | ??????????????????????????????## #[ !!! | | ??????????????????????????????# *%= #?? | | ??????????????????????????????#% %####### ###?? | | ??????????????????????????????# ##?????####???? | | ??????????????????????######### ##?????????????? | | ??????????????????????# #??????????????? | | ??????????????????????# #??????????????? | | ??????????????????????# ###### ##??????????????? | | ??????????????????????# #????####???????????????? | | ??????????????????????# #???????????????????????? | | ??????????????????????# #???????????????????????? | | ??????????????????????# #???????????????????????? | | ??????????????????????# #???????????????????????? | | ??????????????????????# ###?????????????????????? | | ??????????????????????# ##????????????????????? | | ??????????????????????# #????????????????????? | | ?????????????????????## #????????????????????? | | ????????????????????## "" ##???????????????????? | | ????????????????????# #???????????????????? | | ????????????????????# ##??????????????????? | | ????????????????????# #??????????????????? | | ????????????????????## #??????????????????? | | ????????????????????# @ #??????????????????? | | ????????????????????# #????????????????? | | ????????????????????# #????????????????? | | ????????????????????### #????????????????? | | ????????????????????# # ???????????????? | | ????????????????????### # ?????????????? | | ?????????????????????? # # ??????????? | | ?????????????????????? # ?????????? | | ????????????????????? #??????????? | | ????????????????????? ? d ##??????????? | | ????????????????????# ? d ????????????? | | ????????????????????#? ### # ????????????? | | ?????????????????????? ? ##??## ??????????????? | | ?????????????????????? ? #??????????????????????? | | ?????????????????????? ? a???????????????????????? | | ???????????????????????? ???????????????????????? | | ?????????????????????????????????????????????????? | | ?????????????????????????????????????????????????? | | ?????????????????????????????????????????????????? | | ?????????????????????????????????????????????????? | | ?????????????????????????????????????????????????? | | ?????????????????????????????????????????????????? | | ?????????????????????????????????????????????????? | | ?????????????????????????????????????????????????? | | ?????????????????????????????????????????????????? | +----------------------------------------------------+ Best States ------------- Heat Dissipation 25 Energy Generation 12 Energy Capacity 265 Matter Stores 300 Matter Capacity 300 Sight Range 16 Terrain Scan Density 10 Evasion (%) 41 Targeting Accuracy 6 Recoil Reduction 1 Authchip Count 2 Item Schematics ----------------- Hcp. Storage Unit | -10/Materials | Hacked Huge Storage Unit | -10/Materials | Hacked Robot Schematics ------------------ None Fabricated ------------ Nothing Repaired ---------- Nothing Alien Tech Used ----------------- None Achievements -------------- None Challenges ------------ None Game ------ Seed CoilCouplerSlayer Manual? 0 Play Time 00:12:51 Cumulative 676.0 hours Start 2025.05.07 @ 12:59:56 End 2025.05.07 @ 13:11:05 Sessions 1 Manual Loads 0 Difficulty Rogue Special Mode None Game No. 267 Rogue 262 Adventurer 4 Explorer 1 Win Type - Total 10 Types 6/1/1/1/0/1/0/0/0/0 Lore% 93 Gallery% 87 Achievement% 87 Wizard Run 0 Options --------- Layout 0 ASCII 0 Keyboard 0 Movement Numpad Keybinds 0 Fullscreen 2 Font 18/CogNarrow Map View 76x50 Zoom Use 0% Tactical HUD 1 Map Filters NONE Filters NONE Steam 1 RUN: 83c8102b-0ba8-4314-aaa7-f857ba0e78c4